Cogmind - Beta 13 @@@ ROGUE MODE // 2024.04.17 @ 14:33:06 Player: sordeles Result: Self-destructed Performance ------------- Evolutions (3) 1500 Regions Visited (5) 1000 Robots Destroyed (94) 470 Value Destroyed (2789) 2789 Prototype IDs (15) 300 Alien Tech Used (0) 0 Bonus (288) 288 TOTAL SCORE: 6347 Bonus ------- High Alert Combat Kills 288 Cogmind --------- Core Integrity 154/700 Matter 158/300 Energy 100/100 System Corruption 0% Temperature Cool (0) Movement Core (50) Location -7/Factory Parts ------- > --- POWER (2) -------- (None) > --- PROPULSION (5) --- (None) > --- UTILITY (4) ------ Hacking Suite > --- WEAPON (2) ------- (None) > --- INVENTORY (5) ---- Light Nuclear Core Improved Utility Shielding Improved Weapon Shielding System Shield Peak State ------------ > --- POWER ------------ Deuterium Engine > --- PROPULSION ------- Aluminum Leg Aluminum Leg Carbon-fiber Leg Arachnoskeleton > --- UTILITY ---------- Large Storage Unit Improved Signal Interpreter Improved Utility Shielding Improved Weapon Shielding > --- WEAPON ----------- Heavy Assault Cannon > --- INVENTORY -------- Light Nuclear Core Light Nuclear Core VTOL Module VTOL Module VTOL Module VTOL Module Cesium-ion Thruster Reaction Control System Hacking Suite Hacking Suite Hacking Suite Missile Launcher Chainsword Chainsword Chainsword [Rating: 49] Favorites ----------- Power Ion Engine Engine Ion Engine Power Core Light Nuclear Core Propulsion Light Treads Treads Light Treads Leg Aluminum Leg Flight Unit VTOL Module Utility Large Storage Unit Device Heat Sink Storage Large Storage Unit Processor Signal Interpreter Hackware Hacking Suite Protection Improved Utility Shielding Weapon Light Assault Rifle Energy Gun Particle Gun Energy Cannon Ion Cannon Ballistic Gun Light Assault Rifle Ballistic Cannon Heavy Assault Cannon Launcher Missile Launcher Impact Weapon Heavy Mace Slashing Weapon Axe Build | -11 -10 -10 -10 -8 -7 ------- Run | Yrd Mat Min Sub Mat Fac Slots Evolved 6 | . . . . 4 2 Power 1 | . . . . . 1 Propulsion 3 | . . . . 2 1 Utility 2 | . . . . 2 . Weapon . | . . . . . . Parts Attached 79 | 6 16 9 6 26 16 Power 14 | 1 4 1 . 6 2 Engine 10 | 1 4 1 . 4 . Core 4 | . . . . 2 2 Reactor . | . . . . . . Propulsion 26 | 2 4 1 2 12 5 Treads 7 | 2 2 1 2 . . Leg 14 | . 2 . . 12 . Wheel . | . . . . . . Hover . | . . . . . . Flight 5 | . . . . . 5 Utility 16 | 1 5 . . 4 6 Device 4 | . 1 . . . 3 Storage 2 | 1 1 . . . . Processor 4 | . 3 . . 1 . Hackware 3 | . . . . . 3 Protection 3 | . . . . 3 . Artifact . | . . . . . . Weapon 23 | 2 3 7 4 4 3 Energy Gun 3 | 1 2 . . . . Energy Cannon 1 | . . 1 . . . Ballistic Gun 2 | 1 1 . . . . Ballistic Cannon 4 | . . 1 . 3 . Launcher 8 | . . 4 2 1 1 Special Weapon . | . . . . . . Impact Weapon 2 | . . 1 1 . . Slashing Weapon 3 | . . . 1 . 2 Piercing Weapon . | . . . . . . Special Melee Weapon . | . . . . . . Unidentified Prototypes . | . . . . . . Parts Lost 22 | . 2 1 . 9 10 Power 3 | . . 1 . 1 1 Propulsion 11 | . 1 . . 6 4 Utility 4 | . 1 . . 1 2 Weapon 4 | . . . . 1 3 Highest Loss Streak 4 | . 2 1 . 3 4 To Critical Strikes . | . . . . . . Average Slot Usage (%) 87 | . 95 99 89 63 67 Engine 11 | . 14 13 14 6 . Treads 19 | . 23 28 27 . . Leg 6 | . 3 . . 20 . Storage 12 | . 14 14 14 7 . Processor 10 | . 9 14 14 8 . Protection 2 | . . . . 10 . Energy Gun 6 | . 13 4 . . . Energy Cannon 1 | . . 7 3 . . Ballistic Gun 6 | . 13 2 . . . Ballistic Cannon 1 | . . 2 . 4 . Launcher 3 | . . 10 5 1 4 Impact Weapon 1 | . . . 5 2 . Naked Turns . | . . . . . . Heaviest Build 46 | 13 30 38 35 46 20 Greatest Support 87 | 40 40 40 40 87 21 Greatest Overweight (x) 4 | 1 2 . . 4 1 Average Overweight (x) . | . . . . . . Largest Inventory Capacity 15 | 8 15 15 15 15 15 Average Capacity 14 | 7 14 15 15 15 5 Most Carried 15 | 2 15 15 15 15 15 Average Carried 12 | 1 11 14 14 13 5 Final Capacity 15 | 8 15 15 15 15 5 Final Carried 15 | 2 15 14 14 15 4 Class Distribution -------------------- 86% | Mutant 10% | Scavenger-Mutant Dominant Class ---------------- Mutant | -10/Materials Mutant | -10/Mines Mutant | -10/Subcaves Mutant | -8/Materials Hacker-Mutant | -7/Factory Resources | -11 -10 -10 -10 -8 -7 ----------- Run | Yrd Mat Min Sub Mat Fac Matter Collected 2170 | 227 466 161 217 1053 46 Remotely . | . . . . . . Salvage Created 2566 | . 806 124 194 1345 97 Parts 176 | . 54 16 9 90 7 Haulers Intercepted . | . . . . . . Recyclers Shooed 3 | . 2 . . . 1 Parts Field Recycled . | . . . . . . Retrieved Matter . | . . . . . . Parts Self-Destructed 4 | . . . 4 . . Prevented . | . . . . . . Kills | -11 -10 -10 -10 -8 -7 ------- Run | Yrd Mat Min Sub Mat Fac Combat Hostiles Destroyed 74 | . 21 9 6 35 3 Melee 8 | . . . . 5 3 Guns 23 | . 21 2 . . . Cannons 30 | . . 6 . 24 . AOE 10 | . . 1 6 3 . Classes Destroyed 14 | . 4 1 2 7 . Worker 2 | . . 1 . 1 . Builder 6 | . . . . 5 1 Recycler 1 | . . . . 1 . Operator 5 | . 3 . . 2 . Watcher 6 | . 3 . . 3 . Swarmer 21 | . 5 9 . 4 3 Cutter 3 | . . . . 3 . Grunt 32 | . 16 . 1 15 . Brawler 1 | . . . . 1 . Duelist 1 | . . . . 1 . Sentry 10 | . . . 1 9 . Hunter 1 | . . . . 1 . Heavy 1 | . . . . 1 . Subdweller 4 | . . . 4 . . Best Kill Streak 9 | . 4 3 3 9 4 Combat Bots Only 6 | . 4 3 3 6 3 Max Kills in Single Turn 3 | . 2 1 2 3 1 Gunslinging 1 | . 1 . . . . Exploded 3 | . . 1 2 3 . Melee 1 | . . . . 1 1 Uniques/NPCs Destroyed . | . . . . . . Combat | -11 -10 -10 -10 -8 -7 -------- Run | Yrd Mat Min Sub Mat Fac Hostile Shots Fired 433 | . 107 40 4 214 68 Missed 111 | . 21 5 2 63 20 Damage Taken 4709 | . 925 297 213 2395 879 Core 1134 | . 130 37 53 368 546 Absorbed by Shields . | . . . . . . Redirected to Shielding 100 | . . . . 100 . Regen/Repaired (Parts) 126 | . 126 . . . . Core Remaining (%) 48 | 100 . . 12 33 . Volleys Fired 247 | . 93 32 5 117 . Largest 2 | . 2 2 2 1 . Hottest 85 | . 85 85 69 60 . Shots Fired 355 | . 186 42 10 117 . Gun 206 | . 186 20 . . . Cannon 136 | . . 21 . 115 . Launcher 13 | . . 1 10 2 . Special . | . . . . . . Kinetic 220 | . 93 12 . 115 . Thermal 122 | . 93 29 . . . Explosive 13 | . . 1 10 2 . Electromagnetic . | . . . . . . Robot Hit Streak 16 | . 16 3 3 6 . Robot Miss Streak 9 | . 9 4 . 4 . Penetration Max 1 | . . . . 1 . Secondary Targets 4 | . 4 . . . . Max Gunslinging Chain 1 | . 1 . . . . Shots Hit Robots 228 | . 117 19 1 84 7 Core Hits 115 | . 47 11 8 41 8 Critical Kills 1 | . . . . 1 . Critical Parts Destroyed 2 | . . 1 . 1 . Critical Strikes 10 | . 2 1 . 7 . Burn 2 | . 2 . . . . Destroy 1 | . . 1 . . . Blast 5 | . . . . 5 . Smash 2 | . . . . 2 . Melee Attacks 48 | . . . 16 19 13 Impact 32 | . . . 13 19 . Slashing 16 | . . . 3 . 13 Piercing . | . . . . . . Sneak Attacks 4 | . . . . 3 1 Combat Hostiles . | . . . . . . Follow-up Attacks . | . . . . . . Damage Inflicted 7578 | . 1398 418 609 4806 347 Guns 1477 | . 1380 97 . . . Cannons 4025 | . . 254 . 3771 . Explosions 779 | . . 61 609 109 . Melee 1203 | . . . . 882 321 Ramming 94 | . 18 6 . 44 26 Kinetic 4272 | . 441 60 . 3771 . Thermal 1230 | . 939 291 . . . Explosive 779 | . . 61 609 109 . Electromagnetic . | . . . . . . Impact 882 | . . . . 882 . Slashing 321 | . . . . . 321 Piercing . | . . . . . . Highest Corruption 2 | . 2 2 2 . . Average Corruption 2 | . 2 2 2 . . Corruption Purged . | . . . . . . Corruption Blocked . | . . . . . . Effects 54 | . 22 20 12 . . Message Errors 15 | . 7 5 3 . . Matter Fused 17 | . 7 7 3 . . Heat Flow Errors 7 | . 2 3 2 . . Energy Discharges 5 | . 4 1 . . . Parts Rejected 1 | . . 1 . . . Data Loss (minor) 4 | . 1 2 1 . . Data Loss (major) 3 | . 1 1 1 . . Misfires 2 | . . . 2 . . Overload Shots . | . . . . . . Overflow Damage 506 | . . 9 2 478 17 Projectiles 277 | . . 9 . 268 . Explosions 2 | . . . 2 . . Melee 227 | . . . . 210 17 Knockbacks 29 | . . 1 . 28 . Impact 3 | . . . . 3 . Kinetic 24 | . . 1 . 23 . Secondary 2 | . . . . 2 . Self-Inflicted Damage 57 | . . . 46 . 11 Shots 1 | . . . 1 . . Rammed 12 | . 4 1 . . 7 Targets Rammed 17 | . 5 2 . 3 7 Kicked 4 | . 1 . . 3 . Crushed 1 | . . 1 . . . Highest Temperature 271 | . 253 271 156 266 100 Average Temperature 65 | . 61 92 85 63 37 Received Heat Transfer 1686 | . 444 9 9 1179 45 Siege Activations . | . . . . . . Robots Corrupted . | . . . . . . Combat Hostiles . | . . . . . . Parts Fried 6 | . . . . 6 . Impact Corruptions 10 | . . . . 10 . Robots Melted . | . . . . . . Combat Hostiles . | . . . . . . Parts Melted 3 | . 2 1 . . . Heat Transferred 3034 | . 2516 518 . . . Parts Sabotaged . | . . . . . . Parts Stolen . | . . . . . . Parts Stripped . | . . . . . . Power Chain Reactions . | . . . . . . Alert | -11 -10 -10 -10 -8 -7 ------- Run | Yrd Mat Min Sub Mat Fac Peak Influence 978 | . 336 103 . 978 474 Initial 436 | . . 9 . 20 436 Average 195 | . 130 40 . 450 441 Maximum Alert Level 3 | . 1 . . 3 2 Low Security (%) 69 | 100 81 100 . 23 . Level 1 13 | . 18 . . 20 . Level 2 12 | . . . . 34 100 Level 3 5 | . . . . 21 . Level 4 . | . . . . . . Level 5 . | . . . . . . High Security . | . . . . . . Max Security . | . . . . . . Squads Dispatched 13 | . 5 1 . 7 . Investigation 3 | . 2 1 . . . Extermination . | . . . . . . Reinforcement 8 | . 3 . . 5 . Assault 1 | . . . . 1 . Garrison 1 | . . . . 1 . Intercept . | . . . . . . Searches Triggered . | . . . . . . Construction Impeded 1 | . . . . 1 . Haulers Reinforced . | . . . . . . Active Scanning Responses . | . . . . . . Cargo Convoy Interrupts . | . . . . . . Stealth | -11 -10 -10 -10 -8 -7 --------- Run | Yrd Mat Min Sub Mat Fac Distress Signals 8 | . 3 . . 5 . Communications Jammed . | . . . . . . Distress Signals . | . . . . . . Times Spotted 127 | . 44 11 3 57 12 Peak Tracking Total 11 | . 7 3 2 9 11 Tactical Retreats 10 | . 3 2 . 4 1 Traps | -11 -10 -10 -10 -8 -7 ------- Run | Yrd Mat Min Sub Mat Fac Traps Triggered 8 | . 3 . 1 . 4 Indirectly . | . . . . . . Trap Hack Attempts . | . . . . . . Triggered . | . . . . . . Disarmed . | . . . . . . Reprogrammed . | . . . . . . Reused . | . . . . . . Traps Extracted . | . . . . . . Installed . | . . . . . . Triggered . | . . . . . . Machines | -11 -10 -10 -10 -8 -7 ---------- Run | Yrd Mat Min Sub Mat Fac Machines Disabled 4 | . . . 1 3 . Max in Single Turn 1 | . . . 1 1 . Garrison Access 1 | . . . . 1 . Machines Repaired . | . . . . . . Machines Dismantled . | . . . . . . Machines Sabotaged . | . . . . . . Overloaded Fab Kills . | . . . . . . Hacking | -11 -10 -10 -10 -8 -7 --------- Run | Yrd Mat Min Sub Mat Fac Machines Accessed 6 | . 3 1 1 . 1 Terminals 2 | . 1 . . . 1 Fabricators . | . . . . . . Repair Stations 1 | . 1 . . . . Recycling Units 1 | . 1 . . . . Scanalyzers . | . . . . . . Garrison Access . | . . . . . . Total Hacks 13 | . 8 1 1 . 3 Successful 11 | . 7 1 1 . 2 Failed 2 | . 1 . . . 1 Catastrophic . | . . . . . . Database Lockouts . | . . . . . . Manual . | . . . . . . Terminals 4 | . 1 . . . 3 Fabricators . | . . . . . . Repair Stations 6 | . 6 . . . . Recycling Units 1 | . 1 . . . . Scanalyzers . | . . . . . . Garrison Access . | . . . . . . Terminal Hacks 5 | . 1 1 1 . 2 Prototype ID Bank 2 | . 1 . . . 1 Open Door 1 | . . 1 . . . Branch Access Points 1 | . . . . . 1 Derelict Proto ID Bank 1 | . . . 1 . . Fabricator Hacks . | . . . . . . Repair Station Hacks 5 | . 5 . . . . Scan Component 3 | . 3 . . . . Repair 2 | . 2 . . . . Recycling Unit Hacks 1 | . 1 . . . . Report Inventory 1 | . 1 . . . . Scanalyzer . | . . . . . . Garrison Access Hacks . | . . . . . . Unauthorized Hacks . | . . . . . . Terminals . | . . . . . . Fabricators . | . . . . . . Repair Stations . | . . . . . . Recycling Units . | . . . . . . Scanalyzers . | . . . . . . Garrison Access . | . . . . . . Data Cores Recovered 2 | . 1 . . 1 . Used . | . . . . . . Hacking Detections 4 | . 3 . . . 1 Full Trace Events . | . . . . . . Feedback Events . | . . . . . . Feedback Blocked . | . . . . . . Robot Schematics Acquired . | . . . . . . Robots Built . | . . . . . . Authchips . | . . . . . . Time . | . . . . . . Total Robot Build Rating . | . . . . . . Part Schematics Acquired . | . . . . . . Parts Built . | . . . . . . Authchips . | . . . . . . Time . | . . . . . . Total Part Build Rating . | . . . . . . Parts Repaired 2 | . 2 . . . . Time 58 | . 58 . . . . Parts Recycled . | . . . . . . Recycled Matter . | . . . . . . Retrieved Matter . | . . . . . . Retrieved Components . | . . . . . . Parts Scanalyzed . | . . . . . . Part Schematics Acquired . | . . . . . . Parts Damaged . | . . . . . . Bothacking | -11 -10 -10 -10 -8 -7 ------------ Run | Yrd Mat Min Sub Mat Fac Used RIF Installer . | . . . . . . Robots Hacked . | . . . . . . Non-combat . | . . . . . . Combat . | . . . . . . Robot Hacks Applied . | . . . . . . Relay Couplers Released 2 | . . . . 2 . Machine Destruction 2 | . . . . 2 . Fabnet Peak Effective % . | . . . . . . Robots Rewired . | . . . . . . Allies Hacked . | . . . . . . Hacks Repelled . | . . . . . . Allies | -11 -10 -10 -10 -8 -7 -------- Run | Yrd Mat Min Sub Mat Fac Total Allies . | . . . . . . Largest Group . | . . . . . . Highest-Rated Group . | . . . . . . Highest-Rated Ally . | . . . . . . Total Orders . | . . . . . . Ally Attacks . | . . . . . . Total Damage . | . . . . . . Kills . | . . . . . . Allies Corrupted . | . . . . . . Allies Melted . | . . . . . . Intel | -11 -10 -10 -10 -8 -7 ------- Run | Yrd Mat Min Sub Mat Fac Robot Analysis Total . | . . . . . . Derelict Logs Recovered 1 | . . 1 . . . Drone Launches . | . . . . . . Drone Recoveries . | . . . . . . Exploration | -11 -10 -10 -10 -8 -7 ------------- Run | Yrd Mat Min Sub Mat Fac Turns Passed 6375 | 77 2628 1339 779 1342 210 Spaces Moved 3707 | 44 1345 747 436 847 288 Core 31 | 5 . . . . 26 Treads 2408 | 39 1186 747 436 . . Legs 1006 | . 159 . . 847 . Wheels . | . . . . . . Hover . | . . . . . . Flight 262 | . . . . . 262 Fastest Speed 23 | 50 160 160 160 90 23 Average Speed 138 | 152 164 160 160 101 43 Slowest Speed 400 | 160 260 160 160 400 112 Overloaded Moves . | . . . . . . Propulsion Burnouts . | . . . . . . Robots Hopped . | . . . . . . Cave-ins Triggered . | . . . . . . Exploration Rate (%) 49 | 4 98 99 24 62 12 Regions Visited 5 Branch Regions 2 Pre-discovered Areas . | . . . . . . Known Exits Taken 4 | . 1 1 1 1 . Unknown Exits Taken 1 | 1 . . . . . Scrap Searched 4 | . . 1 3 . . Spaces Dug 4 | . . . 4 . . Terrain Destroyed 155 | . . 15 74 66 . Melee 4 | . . . 4 . . Projectile 50 | . . 1 . 49 . AOE 101 | . . 14 70 17 . Terrain Rammed . | . . . . . . Walls Destroyed . | . . . . . . Machines Disabled . | . . . . . . Actions | -11 -10 -10 -10 -8 -7 --------- Run | Yrd Mat Min Sub Mat Fac Total 4478 | 51 1596 854 487 1132 358 Wait 249 | . 103 47 9 71 19 Move 3702 | 43 1344 746 435 846 288 Hop . | . . . . . . Pick Up 49 | 2 16 5 4 20 2 Fast Attach 42 | 6 12 5 . 18 1 Attach 36 | . 3 4 6 8 15 Detach 31 | . 10 4 5 7 5 Swap 1 | . 1 . . . . Drop 56 | . 9 9 7 23 8 Fire 247 | . 93 32 5 117 . Melee 48 | . . . 16 19 13 Ram 7 | . . . . . 7 Kick 4 | . 1 . . 3 . Crush 6 | . 4 2 . . . Escape Stasis . | . . . . . . Rewire . | . . . . . . Trap . | . . . . . . Miscellaneous . | . . . . . . Route ------- -11/Scrapyard -10/Materials (discovered 6 exits: *Mat x3 / *Min x2 / *Sub) -10/Mines (discovered 3 exits: *Mat x2 / *Sub) -10/Subcaves -8/Materials (discovered 2 exits: *Fac x2) -7/Factory (discovered 3 exits: Sto / Low x2) History --------- Turn | Location | Event 31 | -11/Scrapyard | Discovered new exit (range 16) 78 | -11/Scrapyard | Entered Materials 311 | -10/Materials | Build established: Mutant 597 | -10/Materials | Discovered new exit (range 15) 671 | -10/Materials | Discovered new exit (range 7) 818 | -10/Materials | Repaired Particle Gun 846 | -10/Materials | Repaired Lgt. Assault Rifle 1147 | -10/Materials | Discovered new exit (range 15) 1229 | -10/Materials | Core integrity fell below 50% 1433 | -10/Materials | Discovered new exit (range 16) 1671 | -10/Materials | Discovered new exit (range 16) 1696 | -10/Materials | Identified exit to Materials 1826 | -10/Materials | Identified exit to Mines 2389 | -10/Materials | Discovered new exit (range 11) 2403 | -10/Materials | Identified exit to Subcaves 2706 | -10/Materials | Entered Mines 2896 | -10/Mines | Received a Rocket Launcher from a helpful Derelict 3162 | -10/Mines | A weapon hastily lodged in a ceiling crevice suddenly fell to the ground 3275 | -10/Mines | Discovered exit to Materials (range 3) 3288 | -10/Mines | Met a Derelict shopkeep closing up shop 3360 | -10/Mines | Discovered exit to Subcaves (range 14) 4045 | -10/Mines | Entered Subcaves 4079 | -10/Subcaves | Discovered new exit (range 6) 4085 | -10/Subcaves | Ambushed by Subdweller buried in earth 4091 | -10/Subcaves | Identified exit to Materials 4244 | -10/Subcaves | Core integrity fell below 20% 4268 | -10/Subcaves | Visited 4L-MR0's lab 4300 | -10/Subcaves | Found Arachnoskeleton 4575 | -10/Subcaves | A swath of the cavern ceiling suddenly collapsed 4824 | -10/Subcaves | Entered Materials 4824 | -8/Materials | Evolved 4 slots: Propulsion x2, Utility x2 4827 | -8/Materials | Attached Arachnoskeleton, gained temporary slots: Propulsion x3 5754 | -8/Materials | Discovered new exit (range 9) 5763 | -8/Materials | Identified exit to Factory 5863 | -8/Materials | Garrison activated, responded to threat 5938 | -8/Materials | Core integrity fell below 50% 6083 | -8/Materials | Discovered exit to Factory (range 5) 6166 | -8/Materials | Entered Factory 6166 | -7/Factory | Evolved 2 slots: Power x1, Propulsion x1 6189 | -7/Factory | Identified exit to Storage 6189 | -7/Factory | Identified exit to Lower Caves 6193 | -7/Factory | Lost 3 parts (2n1w) 6276 | -7/Factory | Lost 3 parts (1p2n) 6346 | -7/Factory | Lost 3 parts (2n1w) 6362 | -7/Factory | Core integrity fell below 50% 6376 | -7/Factory | Self-destructed Last Messages --------------- Slammed into R-06 Scavenger. Slammed into W-25 Informer. K-01 Serf collects debris. R-06 Scavenger collects Lgt. Ion Engine. Slammed into U-05 Engineer. K-01 Serf collects debris. S-27 Virus destroyed. Chainsword destroyed. Slammed into S-27 Virus. Hacking Suite destroyed. S-27 Virus destroyed. Hacking Suite destroyed. R-06 Scavenger collects VTOL Module. Destroyed VTOL Module. S-27 Virus destroyed. R-06 Scavenger collects Lgt. Nuclear Core. Chainsword destroyed. Slammed into L-41 Fighter. Slammed into S-27 Virus. Acquired 29 matter. Map ----- +----------------------------------------------------+ | ???????????????????????????????????? | | ???????????????????????????????????? | | ???????????????????????????????????? """ """ | | ????????????????????????????????????? """ """ | | ?????????????????????????????????????? """ """ | | ???????????????????????????????????????# | | ???????????????????????????????????????# """ """ | | ???????????????????????????????????????? """ """ | | ???????????????????????????????????????" """ """ | | ?????????????????????????????????????" | | ??????????????????????????????????????"" """ | | ??????????????????????????????????????"" """ | | ?????????????????????????????????????### "" """ | | ?????????????????????????????????????""" "" | | ?????????????????????????????????????"T "T """ | | ?????????????????????????????????????""" "" """ | | ???????????????????????????????????????# "" """ | | ???????????????????????????????????????# | | ???????????????????????????????????????# | | ???????????????????????????????????????#### | | ??????????????????????????????????????????# | | ??????????????????????????????????????????# | | ??????????????????????????????????????????# | | ??????????????????????????????????????????# | | ??????????????#+########################??# | | ???????? u u k=ssls@gr r #### | | ??????????????#+##+########r """ """ / | | ??????????????????????????# """ """ # | | ??????????????????????????# """ """ [ # #### | | ??????????????????????????# # #??? | | ??????????????????????????#######/####+# #??? | | ?????????????????????????????????? ??? #??? | | ?????????????????????????????????????? #??? | | ????????????????????????????????????? """ #??? | | ????????????????????????????????????? """ #??? | | ???????????????????????????????????? """ #??? | | ???????????????????????????????????# ??? | | ???????????????????????????????????# ??" ###?? | | ???????????????????????????????????# ???" #???? | | ???????????????????????????????????# ????? #???? | | ???????????????????????????????????#??????" #???? | | ??????????????????????????????????????????? #???? | | ??????????????????????????????????????????? ?????? | | ?????????????????????????????????????????????????? | | ?????????????????????????????????????????????????? | | ?????????????????????????????????????????????????? | | ?????????????????????????????????????????????????? | | ?????????????????????????????????????????????????? | | ?????????????????????????????????????????????????? | | ?????????????????????????????????????????????????? | +----------------------------------------------------+ Best States ------------- Heat Dissipation 35 Energy Generation 23 Energy Capacity 275 Matter Stores 300 Matter Capacity 300 Sight Range 18 Robot Scan Range 15 Terrain Scan Density 10 Armor Coverage 150 Utility Shielding 66 Weapon Shielding 66 Evasion (%) 65 Recoil Reduction 2 Salvage Targeting 1 Offensive Hacking 30 Item Schematics ----------------- None Robot Schematics ------------------ None Fabricated ------------ Nothing Alien Tech Used ----------------- None Achievements -------------- Dramatic Entrance Challenges ------------ None Game ------ Seed BottomlessMetafieldNanosword Manual? 0 Play Time 01:07:35 Cumulative 11.2 hours Start 2024.04.17 @ 13:24:16 End 2024.04.17 @ 14:33:06 Sessions 3 Manual Loads 0 Difficulty Rogue Special Mode None Game No. 11 Rogue 11 Adventurer 0 Explorer 0 Win Type - Total 0 Types 0/0/0/0/0/0/0/0/0 Lore% 2 Gallery% 17 Achievement% 13 Wizard Run 0 Options --------- Layout 0 ASCII 0 Keyboard 1 Movement Numpad Keybinds 0 Fullscreen 1 Font 24/Terminus Map View 76x50 Zoom Use 0% Tactical HUD 0 Map Filters NONE Filters NONE Steam 1 RUN: 0fbbf99b-2370-42c5-a96d-c297b1a05eea